[Event "*** SCC Grand Prix: Titled Tuesday Blitz"]
[Site "Chess.com"]
[Date "2020.07.21"]
[Round "5"]
[White "FMOlexandrProhorov"]
[Black "PattyCastillo"]
[Result "1-0"]
[WhiteElo "2131"]
[BlackElo "1945"]
[TimeControl "180+1"]
[EndTime "10:54:31 PDT"]
[Termination "FMOlexandrProhorov won on time"]

1. Nf3 {[%clk 0:03:00.9]} 1... d5 {[%clk 0:02:57.9]} 2. d4 {[%clk 0:02:57.4]}
2... Nf6 {[%clk 0:02:55.1]} 3. c4 {[%clk 0:02:56.8]} 3... c6 {[%clk 0:02:55.1]}
4. Nc3 {[%clk 0:02:56.4]} 4... e6 {[%clk 0:02:55.2]} 5. e3 {[%clk 0:02:56.7]}
5... Nbd7 {[%clk 0:02:54.9]} 6. Qc2 {[%clk 0:02:56.9]} 6... Bd6 {[%clk
0:02:52.2]} 7. g3 {[%clk 0:02:57.2]} 7... O-O {[%clk 0:02:48.2]} 8. Bg2 {[%clk
0:02:28.9]} 8... dxc4 {[%clk 0:02:37]} 9. O-O {[%clk 0:02:28.5]} 9... Qe7 {[%clk
0:02:25.6]} 10. a4 {[%clk 0:02:24.2]} 10... e5 {[%clk 0:02:11.5]} 11. Ne4 {[%clk
0:02:06]} 11... Nxe4 {[%clk 0:02:02.8]} 12. Qxe4 {[%clk 0:02:06.9]} 12... f5
{[%clk 0:01:57.8]} 13. Qc2 {[%clk 0:02:03.1]} 13... e4 {[%clk 0:01:47.6]} 14.
Nd2 {[%clk 0:02:01.1]} 14... b5 {[%clk 0:01:43.4]} 15. b3 {[%clk 0:01:54]} 15...
cxb3 {[%clk 0:01:41.4]} 16. Qxb3+ {[%clk 0:01:47.1]} 16... Kh8 {[%clk
0:01:34.8]} 17. axb5 {[%clk 0:01:46.5]} 17... Rb8 {[%clk 0:01:10.7]} 18. Rxa7
{[%clk 0:01:41.5]} 18... cxb5 {[%clk 0:01:04.9]} 19. Bb2 {[%clk 0:01:37.2]}
19... Qe8 {[%clk 0:00:47.5]} 20. Qd5 {[%clk 0:01:29.9]} 20... Be7 {[%clk
0:00:28.3]} 21. Rc1 {[%clk 0:01:28.3]} 21... Nb6 {[%clk 0:00:26.4]} 22. Qe5
{[%clk 0:01:27.3]} 22... Bf6 {[%clk 0:00:20.7]} 23. Qxb8 {[%clk 0:01:26.4]}
23... Nc4 {[%clk 0:00:19.2]} 24. Nxc4 {[%clk 0:01:24.5]} 24... bxc4 {[%clk
0:00:20.1]} 25. Ba3 {[%clk 0:01:20.8]} 25... Rg8 {[%clk 0:00:19.2]} 26. Rxc4
{[%clk 0:01:18.6]} 26... Be6 {[%clk 0:00:17.1]} 27. Qxe8 {[%clk 0:01:14.6]}
27... Rxe8 {[%clk 0:00:18]} 28. Rcc7 {[%clk 0:01:11.5]} 28... h6 {[%clk
0:00:16.8]} 29. h4 {[%clk 0:01:11.2]} 29... Bb3 {[%clk 0:00:15.6]} 30. Bh3
{[%clk 0:01:07.3]} 30... Be6 {[%clk 0:00:13.7]} 31. Bd6 {[%clk 0:01:02.5]} 31...
Kg8 {[%clk 0:00:12.2]} 32. Be5 {[%clk 0:01:02.4]} 32... Bxe5 {[%clk 0:00:11.1]}
33. dxe5 {[%clk 0:01:02.7]} 33... g6 {[%clk 0:00:04.3]} 34. Rg7+ {[%clk
0:01:03.6]} 34... Kh8 {[%clk 0:00:03.4]} 35. Rxg6 {[%clk 0:01:03.2]} 1-0

[Event "*** SCC Grand Prix: Titled Tuesday Blitz"]
[Site "Chess.com"]
[Date "2020.07.21"]
[Round "5"]
[White "Sjakkerntobi"]
[Black "icychess54"]
[Result "1-0"]
[WhiteElo "2419"]
[BlackElo "2270"]
[TimeControl "180+1"]
[EndTime "10:54:37 PDT"]
[Termination "Sjakkerntobi won by resignation"]

1. e4 {[%clk 0:03:00.9]} 1... c5 {[%clk 0:02:53.2]} 2. Nf3 {[%clk 0:03:00.2]}
2... d6 {[%clk 0:02:53.3]} 3. d4 {[%clk 0:03:00.6]} 3... cxd4 {[%clk 0:02:54.2]}
4. Qxd4 {[%clk 0:03:00.8]} 4... Nc6 {[%clk 0:02:53.3]} 5. Bb5 {[%clk 0:03:01.4]}
5... Bd7 {[%clk 0:02:53.6]} 6. Bxc6 {[%clk 0:03:02]} 6... Bxc6 {[%clk
0:02:51.2]} 7. Nc3 {[%clk 0:03:02.2]} 7... Nf6 {[%clk 0:02:50.5]} 8. Bg5 {[%clk
0:03:02.6]} 8... e6 {[%clk 0:02:49.6]} 9. O-O-O {[%clk 0:03:03.1]} 9... Be7
{[%clk 0:02:32.8]} 10. Qd3 {[%clk 0:03:02.2]} 10... Qc7 {[%clk 0:02:30.8]} 11.
Nd4 {[%clk 0:03:00.2]} 11... Bd7 {[%clk 0:02:27.9]} 12. f4 {[%clk 0:02:59.5]}
12... a6 {[%clk 0:02:24]} 13. Rhe1 {[%clk 0:02:49.1]} 13... b5 {[%clk 0:01:54]}
14. e5 {[%clk 0:02:37.5]} 14... dxe5 {[%clk 0:01:53.5]} 15. fxe5 {[%clk
0:02:38.4]} 15... Ng8 {[%clk 0:01:43.5]} 16. Bxe7 {[%clk 0:02:39.3]} 16... Nxe7
{[%clk 0:01:42.7]} 17. Ne4 {[%clk 0:02:36.8]} 17... O-O {[%clk 0:01:37.3]} 18.
Qg3 {[%clk 0:02:29.1]} 18... Kh8 {[%clk 0:01:20.8]} 19. Qh4 {[%clk 0:02:06.9]}
19... Nf5 {[%clk 0:01:16.3]} 20. Nxf5 {[%clk 0:02:01.2]} 20... exf5 {[%clk
0:01:15.6]} 21. Nf6 {[%clk 0:01:44.4]} 21... gxf6 {[%clk 0:00:50.8]} 22. Qxf6+
{[%clk 0:01:45.3]} 22... Kg8 {[%clk 0:00:50.8]} 23. Re3 {[%clk 0:01:42.1]} 23...
f4 {[%clk 0:00:30.1]} 24. Qxf4 {[%clk 0:01:21]} 24... f5 {[%clk 0:00:22.5]} 25.
Qg5+ {[%clk 0:01:14.3]} 25... Kh8 {[%clk 0:00:22.6]} 26. Rg3 {[%clk 0:01:13.6]}
26... Bc6 {[%clk 0:00:20.1]} 27. e6 {[%clk 0:01:00.1]} 27... Be4 {[%clk
0:00:19.9]} 28. c3 {[%clk 0:00:52.3]} 28... Rad8 {[%clk 0:00:18.4]} 29. Rxd8
{[%clk 0:00:32.4]} 29... Rxd8 {[%clk 0:00:18.5]} 30. Qf6+ {[%clk 0:00:31.4]} 1-0

[Event "*** SCC Grand Prix: Titled Tuesday Blitz"]
[Site "Chess.com"]
[Date "2020.07.21"]
[Round "5"]
[White "AJSC02"]
[Black "Josip_buje"]
[Result "0-1"]
[WhiteElo "2082"]
[BlackElo "2274"]
[TimeControl "180+1"]
[EndTime "10:54:49 PDT"]
[Termination "Josip_buje won on time"]

1. e4 {[%clk 0:03:00.9]} 1... Nf6 {[%clk 0:02:58.9]} 2. e5 {[%clk 0:03:00.8]}
2... Nd5 {[%clk 0:02:58.6]} 3. d4 {[%clk 0:03:00.3]} 3... d6 {[%clk 0:02:58.7]}
4. c4 {[%clk 0:03:00.1]} 4... Nb6 {[%clk 0:02:58.8]} 5. exd6 {[%clk 0:03:01]}
5... exd6 {[%clk 0:02:59.4]} 6. Nc3 {[%clk 0:02:58.6]} 6... Nc6 {[%clk
0:02:59.1]} 7. d5 {[%clk 0:02:57.5]} 7... Ne5 {[%clk 0:02:58.9]} 8. f4 {[%clk
0:02:57]} 8... Ng6 {[%clk 0:02:58.8]} 9. Nf3 {[%clk 0:02:55.1]} 9... Be7 {[%clk
0:02:58.7]} 10. Bd3 {[%clk 0:02:52.6]} 10... O-O {[%clk 0:02:58]} 11. O-O {[%clk
0:02:52.6]} 11... Bg4 {[%clk 0:02:56.6]} 12. h3 {[%clk 0:02:50.1]} 12... Bd7
{[%clk 0:02:54.3]} 13. b3 {[%clk 0:02:46.6]} 13... Bf6 {[%clk 0:02:54.1]} 14.
Qc2 {[%clk 0:02:42.6]} 14... a5 {[%clk 0:02:47.2]} 15. Bd2 {[%clk 0:02:32.8]}
15... a4 {[%clk 0:02:44]} 16. b4 {[%clk 0:02:21.3]} 16... a3 {[%clk 0:02:43.7]}
17. Rae1 {[%clk 0:02:18.4]} 17... Re8 {[%clk 0:02:39.5]} 18. Ne4 {[%clk
0:02:15.4]} 18... Ba4 {[%clk 0:02:35.8]} 19. Qb1 {[%clk 0:02:14.5]} 19... Bb2
{[%clk 0:02:33.8]} 20. Ng3 {[%clk 0:01:41.3]} 20... Nh4 {[%clk 0:02:29.2]} 21.
Bxh7+ {[%clk 0:01:38.7]} 21... Kh8 {[%clk 0:02:27.6]} 22. Bd3 {[%clk 0:01:27.4]}
22... Nxf3+ {[%clk 0:02:24.8]} 23. Rxf3 {[%clk 0:01:26]} 23... Qh4 {[%clk
0:02:17.1]} 24. Nf5 {[%clk 0:01:20.1]} 24... Qf6 {[%clk 0:02:11.3]} 25. Rfe3
{[%clk 0:01:10.5]} 25... Rxe3 {[%clk 0:02:09.9]} 26. Bxe3 {[%clk 0:01:04.7]}
26... Bd7 {[%clk 0:02:05.9]} 27. Ng3 {[%clk 0:01:00.4]} 27... Bd4 {[%clk
0:01:57.5]} 28. Qc1 {[%clk 0:00:53.5]} 28... Re8 {[%clk 0:01:51.3]} 29. Ne4
{[%clk 0:00:42]} 29... Bxe3+ {[%clk 0:01:41.3]} 30. Qxe3 {[%clk 0:00:42]} 30...
Qh4 {[%clk 0:01:30.6]} 31. Qf2 {[%clk 0:00:38.1]} 31... Qxf2+ {[%clk 0:01:25.7]}
32. Kxf2 {[%clk 0:00:39]} 32... Bf5 {[%clk 0:01:25.7]} 33. Nc5 {[%clk
0:00:34.6]} 33... Rxe1 {[%clk 0:01:21.5]} 34. Kxe1 {[%clk 0:00:32.5]} 34... dxc5
{[%clk 0:01:08.6]} 35. Bxf5 {[%clk 0:00:25.1]} 35... cxb4 {[%clk 0:01:08.3]} 36.
Kd2 {[%clk 0:00:06.5]} 36... Nxc4+ {[%clk 0:01:07.2]} 37. Kd3 {[%clk 0:00:03.6]}
37... b3 {[%clk 0:00:57.4]} 0-1

[Event "*** SCC Grand Prix: Titled Tuesday Blitz"]
[Site "Chess.com"]
[Date "2020.07.21"]
[Round "5"]
[White "Giraffe_Chess"]
[Black "politeplayer"]
[Result "1-0"]
[WhiteElo "2400"]
[BlackElo "2205"]
[TimeControl "180+1"]
[EndTime "10:54:52 PDT"]
[Termination "Giraffe_Chess won by resignation"]

1. d4 {[%clk 0:02:54]} 1... Nf6 {[%clk 0:02:56.2]} 2. c4 {[%clk 0:02:52.3]} 2...
c5 {[%clk 0:02:56.6]} 3. d5 {[%clk 0:02:52.1]} 3... e6 {[%clk 0:02:57.1]} 4. Nc3
{[%clk 0:02:51.3]} 4... exd5 {[%clk 0:02:56.8]} 5. cxd5 {[%clk 0:02:52.2]} 5...
d6 {[%clk 0:02:57.2]} 6. e4 {[%clk 0:02:52.3]} 6... g6 {[%clk 0:02:56.8]} 7.
Nge2 {[%clk 0:02:52.2]} 7... Bg7 {[%clk 0:02:56.2]} 8. Ng3 {[%clk 0:02:52.4]}
8... O-O {[%clk 0:02:56.3]} 9. Be2 {[%clk 0:02:52.4]} 9... a6 {[%clk 0:02:50.8]}
10. a4 {[%clk 0:02:51]} 10... Nbd7 {[%clk 0:02:49.2]} 11. O-O {[%clk 0:02:50]}
11... Re8 {[%clk 0:02:46.7]} 12. f4 {[%clk 0:02:42.6]} 12... c4 {[%clk
0:02:33.5]} 13. e5 {[%clk 0:02:35.8]} 13... dxe5 {[%clk 0:02:31.2]} 14. f5
{[%clk 0:02:36.1]} 14... Qb6+ {[%clk 0:02:23.2]} 15. Kh1 {[%clk 0:02:35.8]}
15... Qb3 {[%clk 0:02:06.5]} 16. Qe1 {[%clk 0:02:20]} 16... Nc5 {[%clk
0:02:04.3]} 17. Bg5 {[%clk 0:02:10.4]} 17... Nfd7 {[%clk 0:01:30.5]} 18. Qd2
{[%clk 0:01:53.6]} 18... e4 {[%clk 0:01:15.7]} 19. Bh6 {[%clk 0:01:28.5]} 19...
Nd3 {[%clk 0:00:58.5]} 20. Bxg7 {[%clk 0:01:23.9]} 20... Kxg7 {[%clk 0:00:58.4]}
21. Ngxe4 {[%clk 0:00:50]} 21... Qxb2 {[%clk 0:00:20.2]} 22. f6+ {[%clk
0:00:20]} 22... Nxf6 {[%clk 0:00:15.4]} 23. Qxb2 {[%clk 0:00:18.8]} 23... Nxe4
{[%clk 0:00:12.3]} 24. Bxd3 {[%clk 0:00:16.6]} 24... Nd6 {[%clk 0:00:08.5]} 25.
Ne4+ {[%clk 0:00:15.8]} 25... f6 {[%clk 0:00:08.8]} 26. Nxd6 {[%clk 0:00:15.9]}
1-0

[Event "*** SCC Grand Prix: Titled Tuesday Blitz"]
[Site "Chess.com"]
[Date "2020.07.21"]
[Round "5"]
[White "m-garcett"]
[Black "ExcitingTrap"]
[Result "0-1"]
[WhiteElo "2044"]
[BlackElo "2209"]
[TimeControl "180+1"]
[EndTime "10:54:54 PDT"]
[Termination "ExcitingTrap won by resignation"]

1. e4 {[%clk 0:03:00.9]} 1... e5 {[%clk 0:02:57.7]} 2. Nf3 {[%clk 0:02:59.4]}
2... Nc6 {[%clk 0:02:57.9]} 3. Bc4 {[%clk 0:02:59.7]} 3... Bc5 {[%clk
0:02:57.1]} 4. b4 {[%clk 0:03:00.2]} 4... Bxb4 {[%clk 0:02:55]} 5. c3 {[%clk
0:02:59.7]} 5... Bc5 {[%clk 0:02:54.2]} 6. d4 {[%clk 0:02:59.9]} 6... exd4
{[%clk 0:02:53.6]} 7. O-O {[%clk 0:02:59.4]} 7... Nf6 {[%clk 0:02:45.9]} 8. e5
{[%clk 0:02:54.2]} 8... Ng4 {[%clk 0:02:35.8]} 9. cxd4 {[%clk 0:02:44.7]} 9...
Bb6 {[%clk 0:02:33.9]} 10. Ng5 {[%clk 0:02:36.5]} 10... Nh6 {[%clk 0:02:32.4]}
11. Be3 {[%clk 0:01:56.1]} 11... O-O {[%clk 0:02:29]} 12. Qd3 {[%clk 0:01:54.8]}
12... g6 {[%clk 0:02:26.7]} 13. Ne4 {[%clk 0:01:31.8]} 13... Nf5 {[%clk
0:02:16.5]} 14. Nf6+ {[%clk 0:01:28.1]} 14... Kg7 {[%clk 0:02:13.6]} 15. g4
{[%clk 0:00:56.8]} 15... Nfxd4 {[%clk 0:01:59.8]} 16. Bh6+ {[%clk 0:00:55.7]}
16... Kh8 {[%clk 0:01:56.1]} 17. Qh3 {[%clk 0:00:44.4]} 17... Nxe5 {[%clk
0:01:31.3]} 18. g5 {[%clk 0:00:05]} 18... Rg8 {[%clk 0:00:19.3]} 19. Nxh7 {[%clk
0:00:05]} 19... d5 {[%clk 0:00:10.6]} 20. Qh4 {[%clk 0:00:04.4]} 20... Ndf3+
{[%clk 0:00:09.7]} 21. Kh1 {[%clk 0:00:03.9]} 21... Nxh4 {[%clk 0:00:10.6]} 22.
Nf6 {[%clk 0:00:04]} 0-1

[Event "*** SCC Grand Prix: Titled Tuesday Blitz"]
[Site "Chess.com"]
[Date "2020.07.21"]
[Round "5"]
[White "DonPreuss"]
[Black "a3aki"]
[Result "1-0"]
[WhiteElo "2166"]
[BlackElo "2014"]
[TimeControl "180+1"]
[EndTime "10:54:54 PDT"]
[Termination "DonPreuss won by checkmate"]

1. d4 {[%clk 0:03:00.9]} 1... Nf6 {[%clk 0:02:59.4]} 2. Nc3 {[%clk 0:03:00.7]}
2... g6 {[%clk 0:03:00.3]} 3. e4 {[%clk 0:03:01]} 3... Bg7 {[%clk 0:03:00.4]} 4.
f4 {[%clk 0:03:01.2]} 4... d6 {[%clk 0:03:00.4]} 5. Nf3 {[%clk 0:03:00.9]} 5...
O-O {[%clk 0:03:00.8]} 6. e5 {[%clk 0:03:01.3]} 6... Nfd7 {[%clk 0:03:00.2]} 7.
Bc4 {[%clk 0:03:01]} 7... c5 {[%clk 0:03:00]} 8. e6 {[%clk 0:02:55.4]} 8... fxe6
{[%clk 0:02:56.9]} 9. Bxe6+ {[%clk 0:02:56.1]} 9... Kh8 {[%clk 0:02:57]} 10. d5
{[%clk 0:02:54.6]} 10... Nf6 {[%clk 0:02:56.2]} 11. Ng5 {[%clk 0:02:53.6]} 11...
Qe8 {[%clk 0:02:45.4]} 12. Bxc8 {[%clk 0:02:47.7]} 12... Qxc8 {[%clk 0:02:43.4]}
13. Ne6 {[%clk 0:02:47.7]} 13... Rf7 {[%clk 0:02:36.6]} 14. O-O {[%clk
0:02:35.3]} 14... Nbd7 {[%clk 0:02:34.9]} 15. Qe1 {[%clk 0:02:28.6]} 15... Nf8
{[%clk 0:02:32.4]} 16. Nxg7 {[%clk 0:02:26.1]} 16... Kxg7 {[%clk 0:02:31.4]} 17.
f5 {[%clk 0:02:10.5]} 17... gxf5 {[%clk 0:02:20.5]} 18. Qh4 {[%clk 0:02:08.2]}
18... Ng6 {[%clk 0:02:19.2]} 19. Qh6+ {[%clk 0:02:03.9]} 19... Kg8 {[%clk
0:02:18.2]} 20. Bg5 {[%clk 0:01:51.7]} 20... Qf8 {[%clk 0:02:10.8]} 21. Rxf5
{[%clk 0:01:29.2]} 21... Qxh6 {[%clk 0:02:06.9]} 22. Bxh6 {[%clk 0:01:29.1]}
22... a6 {[%clk 0:02:03.9]} 23. Raf1 {[%clk 0:01:28.1]} 23... Ne5 {[%clk
0:01:57.8]} 24. h3 {[%clk 0:00:59.3]} 24... b5 {[%clk 0:01:51.3]} 25. Bf4 {[%clk
0:00:44.6]} 25... b4 {[%clk 0:01:46.6]} 26. Bxe5 {[%clk 0:00:44.8]} 26... dxe5
{[%clk 0:01:26.2]} 27. Ne4 {[%clk 0:00:44.8]} 27... Raf8 {[%clk 0:01:23.2]} 28.
Ng5 {[%clk 0:00:44.2]} 28... Rg7 {[%clk 0:01:17.6]} 29. Ne6 {[%clk 0:00:44.3]}
29... Rg6 {[%clk 0:01:10.5]} 30. Nxf8 {[%clk 0:00:43.1]} 30... Kxf8 {[%clk
0:01:11.4]} 31. Rxe5 {[%clk 0:00:43]} 31... Kf7 {[%clk 0:01:11.2]} 32. Rfe1
{[%clk 0:00:38.7]} 32... Ng8 {[%clk 0:01:08.2]} 33. Re6 {[%clk 0:00:38.7]} 33...
Rg5 {[%clk 0:01:06.5]} 34. d6 {[%clk 0:00:37.4]} 34... exd6 {[%clk 0:01:06.1]}
35. Rxd6 {[%clk 0:00:37.6]} 35... Nf6 {[%clk 0:01:04]} 36. Rf1 {[%clk
0:00:37.2]} 36... Rg6 {[%clk 0:01:03.2]} 37. Rxa6 {[%clk 0:00:36.5]} 37... c4
{[%clk 0:01:03]} 38. Raxf6+ {[%clk 0:00:36.4]} 38... Rxf6 {[%clk 0:01:02.8]} 39.
Rxf6+ {[%clk 0:00:37]} 39... Kxf6 {[%clk 0:01:03.3]} 40. Kf2 {[%clk 0:00:32.9]}
40... Ke5 {[%clk 0:01:01.8]} 41. Ke3 {[%clk 0:00:33]} 41... h5 {[%clk
0:01:01.1]} 42. g3 {[%clk 0:00:33.2]} 42... Kd5 {[%clk 0:00:52.8]} 43. g4 {[%clk
0:00:33]} 43... hxg4 {[%clk 0:00:52]} 44. hxg4 {[%clk 0:00:33.9]} 44... Ke5
{[%clk 0:00:52.4]} 45. g5 {[%clk 0:00:33.9]} 45... Kf5 {[%clk 0:00:52]} 46. Kd4
{[%clk 0:00:34.2]} 46... Kxg5 {[%clk 0:00:51.4]} 47. Kxc4 {[%clk 0:00:34.1]}
47... b3 {[%clk 0:00:52.3]} 48. Kxb3 {[%clk 0:00:34]} 48... Kf5 {[%clk
0:00:53.2]} 49. Kc4 {[%clk 0:00:34.3]} 49... Ke6 {[%clk 0:00:54.1]} 50. Kc5
{[%clk 0:00:35.2]} 50... Kd7 {[%clk 0:00:55]} 51. a4 {[%clk 0:00:35.6]} 51...
Kc7 {[%clk 0:00:55.9]} 52. b4 {[%clk 0:00:36.3]} 52... Kb7 {[%clk 0:00:56.7]}
53. b5 {[%clk 0:00:37.2]} 53... Ka7 {[%clk 0:00:57.1]} 54. c4 {[%clk 0:00:38.1]}
54... Kb8 {[%clk 0:00:57.6]} 55. a5 {[%clk 0:00:38.4]} 55... Ka8 {[%clk
0:00:58.5]} 56. a6 {[%clk 0:00:38.6]} 56... Kb8 {[%clk 0:00:59.4]} 57. b6 {[%clk
0:00:38.7]} 57... Ka8 {[%clk 0:01:00.3]} 58. Kc6 {[%clk 0:00:38.2]} 58... Kb8
{[%clk 0:01:01.2]} 59. b7 {[%clk 0:00:35.8]} 59... Ka7 {[%clk 0:00:59.6]} 60.
Kc7 {[%clk 0:00:35.6]} 60... Kxa6 {[%clk 0:01:00.3]} 61. b8=Q {[%clk 0:00:34.6]}
61... Ka5 {[%clk 0:01:01.2]} 62. Qb5# {[%clk 0:00:34.4]} 1-0

[Event "*** SCC Grand Prix: Titled Tuesday Blitz"]
[Site "Chess.com"]
[Date "2020.07.21"]
[Round "5"]
[White "ChadBiryani"]
[Black "Larina_Marija"]
[Result "1-0"]
[WhiteElo "2322"]
[BlackElo "2112"]
[TimeControl "180+1"]
[EndTime "10:54:56 PDT"]
[Termination "ChadBiryani won by checkmate"]

1. d4 {[%clk 0:03:00.9]} 1... f5 {[%clk 0:02:59.7]} 2. Bg5 {[%clk 0:02:53.7]}
2... g6 {[%clk 0:02:58.8]} 3. e4 {[%clk 0:02:51.6]} 3... fxe4 {[%clk 0:02:58.1]}
4. Nc3 {[%clk 0:02:51.9]} 4... d5 {[%clk 0:02:57.1]} 5. f3 {[%clk 0:02:50.9]}
5... e3 {[%clk 0:02:50.8]} 6. Bd3 {[%clk 0:02:36.7]} 6... Bg7 {[%clk 0:02:50.2]}
7. Qe2 {[%clk 0:02:34]} 7... Bxd4 {[%clk 0:02:49.5]} 8. O-O-O {[%clk 0:02:30.3]}
8... c6 {[%clk 0:02:41]} 9. Bxe3 {[%clk 0:02:26.9]} 9... Bxc3 {[%clk 0:02:40.4]}
10. bxc3 {[%clk 0:02:26.3]} 10... Nf6 {[%clk 0:02:40.5]} 11. Bh6 {[%clk
0:02:22.6]} 11... Kf7 {[%clk 0:02:36.7]} 12. Nh3 {[%clk 0:02:19]} 12... Re8
{[%clk 0:02:32.6]} 13. Ng5+ {[%clk 0:02:04.8]} 13... Kg8 {[%clk 0:02:32.3]} 14.
h4 {[%clk 0:01:54.9]} 14... Qd6 {[%clk 0:02:31.8]} 15. h5 {[%clk 0:01:51.9]}
15... Qa3+ {[%clk 0:02:25.6]} 16. Kd2 {[%clk 0:01:42.3]} 16... d4 {[%clk
0:02:23.2]} 17. cxd4 {[%clk 0:01:40.1]} 17... Qb4+ {[%clk 0:02:20.9]} 18. c3
{[%clk 0:01:40.2]} 18... Qb2+ {[%clk 0:02:20.8]} 19. Bc2 {[%clk 0:01:39.6]}
19... Bf5 {[%clk 0:02:19.6]} 20. Rc1 {[%clk 0:01:35]} 20... e5 {[%clk
0:02:17.2]} 21. hxg6 {[%clk 0:01:26.3]} 21... Bxg6 {[%clk 0:01:57.1]} 22. Kd1
{[%clk 0:01:25.3]} 22... Bxc2+ {[%clk 0:01:54]} 23. Rxc2 {[%clk 0:01:24.1]}
23... Qb1+ {[%clk 0:01:51.5]} 24. Rc1 {[%clk 0:01:24.3]} 24... Qg6 {[%clk
0:01:44.7]} 25. dxe5 {[%clk 0:00:40.5]} 25... Na6 {[%clk 0:01:30.9]} 26. f4
{[%clk 0:00:33.6]} 26... Rad8+ {[%clk 0:01:30.2]} 27. Ke1 {[%clk 0:00:33.5]}
27... Nd5 {[%clk 0:01:23.9]} 28. g3 {[%clk 0:00:31.4]} 28... Nc5 {[%clk
0:01:21.4]} 29. Kf1 {[%clk 0:00:24.5]} 29... Nd3 {[%clk 0:01:09.3]} 30. Rd1
{[%clk 0:00:20.9]} 30... N3xf4 {[%clk 0:01:04.7]} 31. gxf4 {[%clk 0:00:20.7]}
31... Nxf4 {[%clk 0:01:04.9]} 32. Qc4+ {[%clk 0:00:17.2]} 32... Kh8 {[%clk
0:01:03.4]} 33. Rxd8 {[%clk 0:00:16.3]} 33... Qb1+ {[%clk 0:01:00.7]} 34. Kf2
{[%clk 0:00:14.6]} 34... Rxd8 {[%clk 0:00:51.3]} 35. Nf7+ {[%clk 0:00:12.2]}
35... Kg8 {[%clk 0:00:50.5]} 36. Nxd8+ {[%clk 0:00:12.2]} 36... Kh8 {[%clk
0:00:49.9]} 37. Rxb1 {[%clk 0:00:09.9]} 37... Nh3+ {[%clk 0:00:49.5]} 38. Kg3
{[%clk 0:00:09.5]} 38... Ng5 {[%clk 0:00:49.7]} 39. Nf7+ {[%clk 0:00:08.2]}
39... Nxf7 {[%clk 0:00:49.7]} 40. Qxf7 {[%clk 0:00:08.5]} 40... b5 {[%clk
0:00:49.8]} 41. Bg7# {[%clk 0:00:08.5]} 1-0

[Event "*** SCC Grand Prix: Titled Tuesday Blitz"]
[Site "Chess.com"]
[Date "2020.07.21"]
[Round "5"]
[White "Bayernbk"]
[Black "GukeshDommaraju"]
[Result "1-0"]
[WhiteElo "2521"]
[BlackElo "2703"]
[TimeControl "180+1"]
[EndTime "10:54:58 PDT"]
[Termination "Bayernbk won by resignation"]

1. e4 {[%clk 0:02:59.8]} 1... c5 {[%clk 0:02:59.7]} 2. c3 {[%clk 0:03:00]} 2...
e5 {[%clk 0:02:54.6]} 3. Nf3 {[%clk 0:02:59.6]} 3... Nc6 {[%clk 0:02:54.4]} 4.
Bb5 {[%clk 0:02:59.8]} 4... Nge7 {[%clk 0:02:52.2]} 5. d4 {[%clk 0:02:57.4]}
5... cxd4 {[%clk 0:02:45.3]} 6. cxd4 {[%clk 0:02:57.4]} 6... exd4 {[%clk
0:02:45.6]} 7. Nxd4 {[%clk 0:02:56.9]} 7... a6 {[%clk 0:02:43.5]} 8. Bc4 {[%clk
0:02:49.1]} 8... Nxd4 {[%clk 0:02:34.6]} 9. Qxd4 {[%clk 0:02:48.3]} 9... Nc6
{[%clk 0:02:34.6]} 10. Qd5 {[%clk 0:02:43.1]} 10... Bb4+ {[%clk 0:02:34]} 11.
Nc3 {[%clk 0:02:37.2]} 11... O-O {[%clk 0:02:29.4]} 12. O-O {[%clk 0:02:37.3]}
12... b5 {[%clk 0:02:24.3]} 13. Bb3 {[%clk 0:02:26.3]} 13... Bb7 {[%clk
0:02:15.7]} 14. Rd1 {[%clk 0:02:21.8]} 14... Na5 {[%clk 0:01:48.5]} 15. Qxd7
{[%clk 0:02:16.6]} 15... Bxc3 {[%clk 0:01:26.4]} 16. bxc3 {[%clk 0:01:44.7]}
16... Qf6 {[%clk 0:01:07.3]} 17. Ba3 {[%clk 0:01:29.8]} 17... Rfd8 {[%clk
0:00:55.3]} 18. Bxf7+ {[%clk 0:01:22.4]} 18... Kh8 {[%clk 0:00:51.4]} 19. Qe7
{[%clk 0:01:11.2]} 19... Qxe7 {[%clk 0:00:38.2]} 20. Bxe7 {[%clk 0:01:12.1]}
20... Rxd1+ {[%clk 0:00:37.5]} 21. Rxd1 {[%clk 0:01:11.4]} 21... Bxe4 {[%clk
0:00:37.4]} 22. Rd8+ {[%clk 0:01:10.6]} 22... Rxd8 {[%clk 0:00:36.5]} 23. Bxd8
{[%clk 0:01:11.5]} 23... Nc6 {[%clk 0:00:35.5]} 24. Bc7 {[%clk 0:01:07.9]} 24...
h6 {[%clk 0:00:30.5]} 25. f3 {[%clk 0:01:06.8]} 25... Bb1 {[%clk 0:00:29.3]} 26.
Kf2 {[%clk 0:01:04.9]} 26... b4 {[%clk 0:00:19.1]} 27. cxb4 {[%clk 0:00:56.8]}
27... Nxb4 {[%clk 0:00:20]} 28. a4 {[%clk 0:00:54.4]} 28... Nd3+ {[%clk
0:00:19.5]} 29. Ke3 {[%clk 0:00:54.6]} 29... Nc5 {[%clk 0:00:13.7]} 30. a5
{[%clk 0:00:52]} 30... Bf5 {[%clk 0:00:13.5]} 31. Bb6 {[%clk 0:00:49]} 31... Nd7
{[%clk 0:00:13.6]} 32. Bc4 {[%clk 0:00:45.2]} 32... Nb8 {[%clk 0:00:11.2]} 33.
Bc7 {[%clk 0:00:44.2]} 33... Nc6 {[%clk 0:00:11.2]} 34. Bxa6 {[%clk 0:00:44.1]}
34... Nb4 {[%clk 0:00:11.1]} 35. Bb7 {[%clk 0:00:43.5]} 35... Na6 {[%clk
0:00:03.8]} 36. Bxa6 {[%clk 0:00:42.9]} 1-0